fUST/lending_fUST_20251201
["ID","MTS","AMOUNT","RATE_DAILY","PERIOD"]
[395202105,1764539454887,-500.0,0.00013972,2]
[395202106,1764539454896,-500.0,0.00013972,2]
[395202107,1764539454905,-500.0,0.00013972,2]
[395202108,1764539454914,-500.0,0.00013972,2]
[395202109,1764539454923,-500.0,0.00013972,2]
[395202110,1764539454936,-500.0,0.00013972,2]
[395202111,1764539454945,-500.0,0.00013972,2]
[395202112,1764539454954,-690.49,0.00013972,2]
[395202113,1764539454963,-500.0,0.00013972,2]
[395202114,1764539454972,-443.97,0.00013972,2]
[395202115,1764539454982,-500.0,0.00013972,2]
[395202116,1764539454991,-500.0,0.00013972,2]
[395202117,1764539455001,-1311.02,0.00013972,2]
[395202118,1764539455010,-500.0,0.00013972,2]
[395202119,1764539455019,-500.0,0.00013972,2]
[395202120,1764539455027,-500.0,0.00013972,2]
[395202121,1764539455036,-500.0,0.00013972,2]
[395202122,1764539455045,-1112.8,0.00013972,2]
[395202123,1764539455054,-500.0,0.00013972,2]
[395202124,1764539455064,-662.4,0.00013972,2]
[395202125,1764539455073,-500.0,0.00013972,2]
[395202126,1764539455082,-500.0,0.00013972,2]
[395202127,1764539455091,-500.0,0.00013972,2]
[395202128,1764539455099,-500.0,0.00013972,2]
[395202129,1764539455108,-534.46,0.00013972,2]
[395202130,1764539455118,-500.0,0.00013972,2]
[395202131,1764539455127,-500.0,0.00013972,2]
[395202132,1764539455135,-1417.69,0.00013972,2]
[395202133,1764539455144,-500.0,0.00013972,2]
[395202134,1764539455154,-530.74,0.00013972,2]
[395202135,1764539455163,-500.0,0.00013972,2]
[395202136,1764539455173,-500.0,0.00013972,2]
[395202137,1764539455182,-500.0,0.00013972,2]
[395202138,1764539455191,-500.0,0.00013972,2]
[395202139,1764539455200,-500.0,0.00013972,2]
[395202140,1764539455208,-500.0,0.00013972,2]
[395202141,1764539455217,-1138.01,0.00013972,2]
[395202142,1764539455227,-1697.97,0.00013972,2]
[395202143,1764539455239,-500.0,0.00013972,2]
[395202144,1764539455248,-961.19,0.00013972,2]
[395202145,1764539455259,-500.0,0.00013972,2]
[395202146,1764539455269,-500.0,0.00013972,2]
[395202147,1764539455279,-500.0,0.00013972,2]
[395202148,1764539455288,-500.0,0.00013972,2]
[395202149,1764539455299,-473.04,0.00013972,2]
[395202150,1764539455309,-590.39,0.00013972,2]
[395202151,1764539455318,-500.0,0.00013972,2]
[395202152,1764539455327,-500.0,0.00013972,2]
[395202153,1764539455336,-500.0,0.00013972,2]
[395202154,1764539455345,-421.95997842,0.00013972,2]
[395202155,1764539455354,-432.28825857,0.00013972,2]
[395202156,1764539455363,-1019.97,0.00013972,2]
[395202157,1764539455373,-500.0,0.00013972,2]
[395202158,1764539455382,-500.0,0.00013972,2]
[395202159,1764539455391,-1068.07,0.00013972,2]
[395202160,1764539455400,-683.85,0.00013972,2]
[395202161,1764539455409,-500.0,0.00013972,2]
[395202162,1764539455418,-804.17,0.00013972,2]
[395202163,1764539455427,-873.95,0.00013972,2]
[395202164,1764539455436,-1269.25,0.00013972,2]
[395202165,1764539455445,-500.0,0.00013972,2]
[395202166,1764539455454,-500.0,0.00013972,2]
[395202167,1764539455463,-500.0,0.00013972,2]
[395202168,1764539455472,-500.0,0.00013972,2]
[395202169,1764539455482,-921.34,0.00013972,2]
[395202170,1764539455491,-542.01,0.00013972,2]
[395202171,1764539455500,-1255.82,0.00013972,2]
[395202172,1764539455510,-500.0,0.00013972,2]
[395202173,1764539455519,-500.0,0.00013972,2]
[395202174,1764539455528,-500.0,0.00013972,2]
[395202175,1764539455537,-500.0,0.00013972,2]
[395202176,1764539455547,-500.0,0.00013972,2]
[395202177,1764539455556,-500.0,0.00013972,2]
[395202178,1764539455566,-500.0,0.00013972,2]
[395202179,1764539455575,-500.0,0.00013972,2]
[395202180,1764539455584,-500.0,0.00013972,2]
[395202181,1764539455593,-607.53181861,0.00013972,2]
[395202182,1764539455602,-500.0,0.00013972,2]
[395202183,1764539455611,-154.94,0.00013972,2]
[395202184,1764539455620,-500.0,0.00013972,2]
[395202185,1764539455630,-500.0,0.00013972,2]
[395202186,1764539455639,-658.71,0.00013972,2]
[395202187,1764539455648,-1004.48,0.00013972,2]
[395202188,1764539455658,-2914.71,0.00013972,2]
[395202189,1764539455667,-500.0,0.00013972,2]
[395202190,1764539455676,-412.95568294,0.00013972,2]
[395202191,1764539455685,-500.0,0.00013972,2]
[395202192,1764539455695,-1788.06,0.00013972,2]
[395202193,1764539455704,-500.0,0.00013972,2]
[395202194,1764539455713,-500.0,0.00013972,2]
[395202195,1764539455723,-752.14,0.00013972,2]
[395202196,1764539455732,-554.65017449,0.00013972,2]
[395202197,1764539455741,-500.0,0.00013972,2]
[395202198,1764539455751,-500.0,0.00013972,2]
[395202199,1764539455762,-500.0,0.00013972,2]
[395202200,1764539455771,-500.0,0.00013972,2]
[395202201,1764539455780,-500.0,0.00013972,2]
[395202202,1764539455790,-500.0,0.00013972,2]
[395202203,1764539455799,-500.0,0.00013972,2]
[395202204,1764539455808,-500.0,0.00013972,2]
[395202205,1764539455819,-509.72,0.00013972,2]
[395202206,1764539455830,-762.36,0.00013972,2]
[395202207,1764539455839,-500.0,0.00013972,2]
[395202208,1764539455848,-842.09,0.00013972,2]
[395202209,1764539455858,-500.0,0.00013972,2]
[395202210,1764539455869,-500.0,0.00013972,2]
[395202211,1764539455879,-500.0,0.00013972,2]
[395202212,1764539455890,-500.0,0.00013972,2]
[395202213,1764539455899,-500.0,0.00013972,2]
[395202214,1764539455911,-500.0,0.00013972,2]
[395202215,1764539455924,-357.29762187,0.00013972,2]
[395202216,1764539455938,-500.0,0.00013972,2]
[395202217,1764539455948,-500.0,0.00013972,2]
[395202218,1764539455957,-500.0,0.00013972,2]
[395202219,1764539455967,-865.18,0.00013972,2]
[395202220,1764539455978,-500.0,0.00013972,2]
[395202221,1764539455987,-674.37,0.00013972,2]
[395202222,1764539455996,-500.0,0.00013972,2]
[395202223,1764539456006,-500.0,0.00013972,2]
[395202224,1764539456015,-500.0,0.00013972,2]
[395202225,1764539456024,-224.74434888,0.00013972,2]
[395202226,1764539456882,-500.0,0.00013698,2]
[395202227,1764539456891,-275.25565112,0.00013972,2]
[395202228,1764539456901,-500.0,0.00013972,2]
[395202229,1764539456910,-500.0,0.00013972,2]
[395202230,1764539456918,-500.0,0.00013972,2]
[395202231,1764539456931,-1342.87,0.00013972,2]
[395202232,1764539456939,-500.0,0.00013972,2]
[395202233,1764539456948,-500.0,0.00013972,2]
[395202234,1764539456957,-500.0,0.00013972,2]
[395202235,1764539456966,-500.0,0.00013972,2]
[395202236,1764539456975,-1144.4860105,0.00013972,2]
[395202239,1764539943655,4417.34,0.0002,120]
[395202240,1764540141094,-500.0,0.00021918,120]
[395202241,1764540141118,-183.46,0.0002197,120]
[395202242,1764540141137,-150.5,0.0002198,120]
[395202243,1764540141157,-150.5,0.0002199,120]
[395202244,1764540141178,-177.0,0.000223,120]
[395202245,1764540141197,-161.0,0.00022357,120]
[395202246,1764540141217,-163.0,0.00022357,120]
[395202247,1764540141238,-194.0,0.00023027,120]
[395202248,1764540141260,-500.0,0.00024658,120]
[395202249,1764540141280,-200.0,0.00024761,120]
[395202250,1764540141301,-2595.14,0.00025,120]
[395202251,1764540223541,5000.0,0.0001401,9]
[395202252,1764540231628,5000.0,0.0001401,9]
[395202253,1764540242956,1260.0,0.0002,30]
[395202254,1764540246802,5000.0,0.0001401,9]
[395202255,1764540255131,-492.98,0.00025,120]
[395202256,1764540255412,5000.0,0.0001401,9]
[395202258,1764540569251,150.0,0.00019224,30]
[395202266,1764540632478,-262.78559802,8.451e-05,2]
[395202268,1764540632487,-138.37229411,8.451e-05,2]
[395202334,1764540638587,-81.62770589,8.451e-05,2]
[395202336,1764540638597,-262.78559802,8.494e-05,2]
[395202338,1764540638607,-262.78559802,8.536e-05,2]
[395202340,1764540638616,-300.0,9.249e-05,2]
[395202342,1764540638625,-63.87108841,9.25e-05,2]
[395202344,1764540638636,-120.2790935,9.25e-05,2]
[395202346,1764540638645,-911.38,9.25e-05,2]
[395202348,1764540638654,-911.38,9.25e-05,2]
[395202350,1764540638663,-725.9409065,9.25e-05,2]
[395202355,1764540638698,-185.4390935,9.25e-05,2]
[395202357,1764540638707,-911.38,9.25e-05,2]
[395202359,1764540638717,-491.00814958,9.25e-05,2]
[395202533,1764540640710,-420.37185042,9.25e-05,2]
[395202536,1764540640720,-397.12416648,9.25e-05,2]
[395202816,1764540643571,-514.25583352,9.25e-05,2]
[395202817,1764540643580,-911.38,9.25e-05,2]
[395202818,1764540643590,-911.38,9.25e-05,2]
[395202820,1764540643599,-523.59416651,9.25e-05,2]
[395202822,1764540643610,-387.78583349,9.25e-05,2]
[395202823,1764540643619,-911.38,9.25e-05,2]
[395202825,1764540643628,-911.38,9.25e-05,2]
[395202827,1764540643637,-911.38,9.25e-05,2]
[395202830,1764540643647,-911.38,9.25e-05,2]
[395202831,1764540643657,-911.38,9.25e-05,2]
[395202834,1764540643666,-55.31416651,9.25e-05,2]
[395203117,1764540646548,-856.06583349,9.25e-05,2]
[395203118,1764540646557,-911.38,9.25e-05,2]
[395203119,1764540646566,-911.38,9.25e-05,2]
[395203120,1764540646575,-911.38,9.25e-05,2]
[395203121,1764540646584,-911.38,9.25e-05,2]
[395203122,1764540646593,-47500.17978651,9.25e-05,2]
[395203123,1764540646616,-2499.82021349,9.25e-05,2]
[395203124,1764540646625,-911.38,9.434e-05,2]
[395203125,1764540646634,-911.38,9.434e-05,2]
[395203126,1764540646643,-911.38,9.434e-05,2]
[395203127,1764540646652,-911.38,9.434e-05,2]
[395203128,1764540646661,-911.42208074,9.434e-05,2]
[395203129,1764540646670,-300.0,9.435e-05,2]
[395203130,1764540646679,-300.0,9.435e-05,2]
[395203131,1764540646687,-300.0,9.435e-05,2]
[395203132,1764540646697,-300.0,9.435e-05,2]
[395203133,1764540646705,-300.0,9.435e-05,2]
[395203134,1764540646714,-300.0,9.435e-05,2]
[395203135,1764540646724,-300.0,9.435e-05,2]
[395203136,1764540646732,-300.0,9.435e-05,2]
[395203137,1764540646741,-300.0,9.435e-05,2]
[395203138,1764540646750,-300.0,9.435e-05,2]
[395203139,1764540646759,-300.0,9.435e-05,2]
[395203140,1764540646768,-300.0,9.435e-05,2]
[395203141,1764540646777,-300.0,9.435e-05,2]
[395203142,1764540646786,-300.0,9.435e-05,2]
[395203143,1764540646795,-300.0,9.435e-05,2]
[395203144,1764540646804,-600.0,9.435e-05,2]
[395203145,1764540646812,-353.67603643,9.922e-05,2]
[395203146,1764540646821,-720.0,0.00010378,2]
[395203147,1764540646830,-310.08700566,0.00010494,2]
[395203148,1764540646839,-500.0,0.00010958,2]
[395203149,1764540646849,-666.0,0.00010959,2]
[395203150,1764540646858,-416.5339411,0.00010959,2]
[395203151,1764540646867,-500.0,0.00010959,2]
[395203152,1764540646877,-249.69708285,0.00010959,2]
[395203153,1764540646887,-864.0,0.00011416,2]
[395203154,1764540646895,-500.0,0.00012054,2]
[395203155,1764540646904,-357.38841331,0.00012494,2]
[395203156,1764540646913,-1000.0,0.00012558,2]
[395203157,1764540646922,-268.84225,0.00012854,2]
[395203158,1764540646931,-231.28369723,0.00012854,2]
[395203159,1764540646940,-301.7532616,0.00013078,2]
[395203160,1764540646949,-301.7532616,0.00013078,2]
[395203161,1764540646958,-500.0,0.0001315,2]
[395203162,1764540646966,-5142.83166076,0.0001315,2]
[395203233,1764541831636,-935.64,8.11e-05,2]
[395203234,1764541831648,-247.72037768,8.151e-05,2]
[395203235,1764541831666,-717.64,8.192e-05,2]
[395203236,1764541831681,-218.0,8.192e-05,2]
[395203237,1764541831693,-245.18043177,9.104e-05,2]
[395203238,1764541831709,-262.64,9.15e-05,2]
[395203239,1764541831725,-232.0,9.332e-05,2]
[395203240,1764541831744,-16537.47058932,9.333e-05,2]
[395203260,1764541837685,-935.64,8.029e-05,2]
[395203262,1764541837695,-33462.52941068,9.333e-05,2]
[395203264,1764541837704,-300.0,9.333e-05,2]
[395203266,1764541837713,-300.0,9.333e-05,2]
[395203268,1764541837723,-300.0,9.333e-05,2]
[395203270,1764541837732,-300.0,9.333e-05,2]
[395203272,1764541837741,-300.0,9.333e-05,2]
[395203274,1764541837751,-300.0,9.333e-05,2]
[395203276,1764541837760,-300.0,9.333e-05,2]
[395203278,1764541837770,-300.0,9.333e-05,2]
[395203280,1764541837779,-300.0,9.333e-05,2]
[395203282,1764541837788,-300.0,9.333e-05,2]
[395203284,1764541837798,-300.0,9.333e-05,2]
[395203286,1764541837808,-300.0,9.333e-05,2]
[395203288,1764541837817,-300.0,9.333e-05,2]
[395203290,1764541837827,-300.0,9.333e-05,2]
[395203292,1764541837836,-300.0,9.333e-05,2]
[395203294,1764541837846,-600.0,9.333e-05,2]
[395203296,1764541837855,-1854.6578609,9.762e-05,2]
[395203299,1764541837864,-169.8831568,9.762e-05,2]
[395203301,1764541837874,-302.37641985,0.00010123,2]
[395203302,1764541837883,-292.31004566,0.00010151,2]
[395203305,1764541837894,-720.0,0.00010266,2]
[395203306,1764541837903,-7421.5091915,0.00010516,2]
[395203308,1764541837913,-500.0,0.00010958,2]
[395203310,1764541837922,-1000.0,0.00010959,2]
[395203313,1764541837934,-332.0,0.00010959,2]
[395203315,1764541837943,-524.787958,0.00010959,2]
[395203317,1764541837953,-864.0,0.00011293,2]
[395203319,1764541837962,-500.0,0.00012054,2]
[395203321,1764541837971,-336.89971364,0.00012151,2]
[395203323,1764541837983,-353.67603643,0.00012155,2]
[395203324,1764541837993,-1000.0,0.00012422,2]
[395203326,1764541838003,-301.7532616,0.00012456,2]
[395203329,1764541838014,-642.43813796,0.000129,2]
[395203330,1764541838023,-642.43813792,0.000129,2]
[395203333,1764541838032,-642.43813792,0.000129,2]
[395203334,1764541838042,-1533.02105023,0.00012912,2]
[395203336,1764541838051,-231.28369723,0.00012989,2]
[395203338,1764541838060,-50000.0,0.00013133,2]
[395203340,1764541838070,-500.0,0.0001315,2]
[395203342,1764541838079,-500.0,0.00013273,2]
[395203344,1764541838088,-500.0,0.00013273,2]
[395203346,1764541838099,-500.0,0.00013273,2]
[395203348,1764541838110,-591.77758134,0.00013273,2]
[395203350,1764541838119,-500.0,0.00013273,2]
[395203352,1764541838129,-500.0,0.00013273,2]
[395203354,1764541838139,-500.0,0.00013273,2]
[395203356,1764541838150,-500.0,0.00013273,2]
[395203359,1764541838160,-500.0,0.00013273,2]
[395203360,1764541838169,-500.0,0.00013273,2]
[395203362,1764541838181,-500.0,0.00013273,2]
[395203364,1764541838192,-500.0,0.00013273,2]
[395203366,1764541838201,-500.0,0.00013273,2]
[395203368,1764541838211,-500.0,0.00013273,2]
[395203370,1764541838220,-500.0,0.00013273,2]
[395203372,1764541838230,-500.0,0.00013278,2]
[395203375,1764541838240,-500.0,0.00013398,2]
[395203377,1764541838249,-151.0,0.000134,2]
[395203378,1764541838259,-46180.89441098,0.00013498,2]
[395203381,1764541838268,-239.84119403,0.00013537,2]
[395203383,1764541838278,-630.0,0.0001356,2]
[395203385,1764541838287,-2153.0,0.0001356,2]
[395203387,1764541838297,-990.0,0.0001356,2]
[395203389,1764541838307,-414.0,0.0001356,2]
[395203391,1764541838317,-1000.0,0.00013664,2]
[395203393,1764541838327,-244.0,0.00013664,2]
[395203395,1764541838336,-300.0,0.00013673,2]
[395203397,1764541838345,-152.8147349,0.00013698,2]
[395203399,1764541838355,-500.0,0.00013698,2]
[395203401,1764541838363,-249.63545881,0.00013698,2]
[395203403,1764541838373,-500.0,0.00013698,2]
[395203405,1764541838381,-500.0,0.00013698,2]
[395203407,1764541838390,-500.0,0.00013698,2]
[395203409,1764541838400,-500.0,0.00013698,2]
[395203411,1764541838409,-500.0,0.00013698,2]
[395203413,1764541838419,-500.0,0.00013698,2]
[395203415,1764541838428,-500.0,0.00013698,2]
[395203417,1764541838436,-500.0,0.00013698,2]
[395203419,1764541838445,-500.0,0.00013698,2]
[395203421,1764541838454,-500.0,0.00013698,2]
[395203422,1764541838463,-500.0,0.00013698,2]
[395203425,1764541838472,-500.0,0.00013698,2]
[395203426,1764541838481,-500.0,0.00013698,2]
[395203428,1764541838491,-500.0,0.00013698,2]
[395203430,1764541838500,-500.0,0.00013698,2]
[395203432,1764541838509,-500.0,0.00013698,2]
[395203435,1764541838519,-500.0,0.00013698,2]
[395203437,1764541838528,-500.0,0.00013698,2]
[395203439,1764541838537,-500.0,0.00013698,2]
[395203440,1764541838546,-500.0,0.00013698,2]
[395203442,1764541838556,-500.0,0.00013698,2]
[395203445,1764541838565,-194.35358634,0.00013698,2]
[395203447,1764541838574,-500.0,0.00013698,2]
[395203449,1764541838583,-500.0,0.00013698,2]
[395203451,1764541838593,-500.0,0.00013698,2]
[395203453,1764541838602,-500.0,0.00013698,2]
[395203455,1764541838612,-500.0,0.00013698,2]
[395203456,1764541838621,-500.0,0.00013698,2]
[395203458,1764541838630,-504.75,0.00013698,2]
[395203461,1764541838639,-500.0,0.00013698,2]
[395203463,1764541838649,-500.0,0.00013698,2]
[395203465,1764541838658,-500.0,0.00013698,2]
[395203467,1764541838667,-500.0,0.00013698,2]
[395203469,1764541838677,-717.74,0.00013698,2]
[395203471,1764541838686,-500.0,0.00013698,2]
[395203472,1764541838696,-500.0,0.00013698,2]
[395203474,1764541838706,-500.0,0.00013698,2]
[395203476,1764541838715,-500.0,0.00013698,2]
[395203479,1764541838725,-587.86,0.00013698,2]
[395203480,1764541838735,-500.0,0.00013698,2]
[395203482,1764541838745,-500.0,0.00013698,2]
[395203484,1764541838754,-500.0,0.00013698,2]
[395203487,1764541838764,-500.0,0.00013698,2]
[395203489,1764541838773,-500.0,0.00013698,2]
[395203490,1764541838782,-500.0,0.00013698,2]
[395203493,1764541838793,-500.0,0.00013698,2]
[395203494,1764541838802,-500.0,0.00013698,2]
[395203496,1764541838811,-500.0,0.00013698,2]
[395203498,1764541838820,-500.0,0.00013698,2]
[395203501,1764541838830,-500.0,0.00013698,2]
[395203502,1764541838839,-500.0,0.00013698,2]
[395203504,1764541838848,-500.0,0.00013698,2]
[395203505,1764541838858,-500.0,0.00013698,2]
[395203507,1764541838867,-500.0,0.00013698,2]
[395203509,1764541838876,-500.0,0.00013698,2]
[395203511,1764541838886,-500.0,0.00013698,2]
[395203513,1764541838895,-500.0,0.00013698,2]
[395203515,1764541838904,-500.0,0.00013698,2]
[395203517,1764541838913,-566.82,0.00013698,2]
[395203519,1764541838923,-500.0,0.00013698,2]
[395203521,1764541838932,-500.0,0.00013698,2]
[395203523,1764541838941,-500.0,0.00013698,2]
[395203525,1764541838950,-500.0,0.00013698,2]
[395203527,1764541838960,-500.0,0.00013698,2]
[395203529,1764541838969,-500.0,0.00013698,2]
[395203531,1764541838978,-442.54359948,0.00013698,2]
[395203533,1764541838988,-500.0,0.00013698,2]
[395203535,1764541838997,-500.0,0.00013698,2]
[395203537,1764541839007,-500.0,0.00013698,2]
[395203539,1764541839017,-500.0,0.00013698,2]
[395203541,1764541839027,-548.71,0.00013698,2]
[395203543,1764541839036,-672.97,0.00013698,2]
[395203545,1764541839046,-500.0,0.00013698,2]
[395203547,1764541839055,-500.0,0.00013698,2]
[395203549,1764541839065,-500.0,0.00013698,2]
[395203551,1764541839074,-500.0,0.00013698,2]
[395203553,1764541839084,-773.71,0.00013698,2]
[395203555,1764541839094,-500.0,0.00013698,2]
[395203557,1764541839107,-500.0,0.00013698,2]
[395203559,1764541839117,-659.54,0.00013698,2]
[395203578,1764541839127,-500.0,0.00013698,2]
[395203580,1764541839308,-500.0,0.00013698,2]
[395203582,1764541839318,-500.0,0.00013698,2]
[395203584,1764541839328,-500.0,0.00013698,2]
[395203586,1764541839337,-500.0,0.00013698,2]
[395203588,1764541839346,-500.0,0.00013698,2]
[395203590,1764541839355,-482.49783923,0.00013698,2]
[395203592,1764541839364,-500.0,0.00013698,2]
[395203594,1764541839374,-500.0,0.00013698,2]
[395203596,1764541839383,-500.0,0.00013698,2]
[395203598,1764541839392,-500.0,0.00013698,2]
[395203600,1764541839401,-500.0,0.00013698,2]
[395203602,1764541839410,-500.0,0.00013698,2]
[395203604,1764541839419,-500.0,0.00013698,2]
[395203606,1764541839428,-500.0,0.00013698,2]
[395203608,1764541839437,-500.0,0.00013698,2]
[395203610,1764541839446,-500.0,0.00013698,2]
[395203612,1764541839455,-500.0,0.00013698,2]
[395203614,1764541839463,-500.0,0.00013698,2]
[395203616,1764541839472,-500.0,0.00013698,2]
[395203618,1764541839481,-288.98669124,0.00013698,2]
[395203620,1764541839490,-500.0,0.00013698,2]
[395203621,1764541839499,-500.0,0.00013698,2]
[395203622,1764541839509,-611.66019876,0.00013698,2]
[395203623,1764541839517,-500.0,0.00013698,2]
[395203624,1764541839526,-500.0,0.00013698,2]
[395203625,1764541839535,-500.0,0.00013698,2]
[395203626,1764541839544,-500.0,0.00013698,2]
[395203627,1764541839552,-500.0,0.00013698,2]
[395203628,1764541839561,-500.0,0.00013698,2]
[395203629,1764541839569,-524.33,0.00013698,2]
[395203630,1764541839578,-500.0,0.00013698,2]
[395203631,1764541839587,-500.0,0.00013698,2]
[395203632,1764541839595,-500.0,0.00013698,2]
[395203633,1764541839604,-500.0,0.00013698,2]
[395203634,1764541839613,-500.0,0.00013698,2]
[395203635,1764541839621,-743.57,0.00013698,2]
[395203636,1764541839630,-500.0,0.00013698,2]
[395203637,1764541839639,-500.0,0.00013698,2]
[395203638,1764541839648,-500.0,0.00013698,2]
[395203639,1764541839657,-500.0,0.00013698,2]
[395203640,1764541839665,-500.0,0.00013698,2]
[395203641,1764541839674,-500.0,0.00013698,2]
[395203642,1764541839683,-500.0,0.00013698,2]
[395203643,1764541839692,-500.0,0.00013698,2]
[395203644,1764541839700,-500.0,0.00013698,2]
[395203645,1764541839709,-500.0,0.00013698,2]
[395203646,1764541839717,-500.0,0.00013698,2]
[395203647,1764541839725,-500.0,0.00013698,2]
[395203648,1764541839734,-500.0,0.00013698,2]
[395203649,1764541839742,-676.6,0.00013698,2]
[395203650,1764541839751,-500.0,0.00013698,2]
[395203651,1764541839760,-500.0,0.00013698,2]
[395203652,1764541839768,-1732.17,0.00013698,2]
[395203653,1764541839777,-500.0,0.00013698,2]
[395203654,1764541839785,-772.63,0.00013698,2]
[395203655,1764541839795,-493.60612378,0.00013698,2]
[395203656,1764541839803,-500.0,0.00013698,2]
[395203657,1764541839812,-500.0,0.00013698,2]
[395203658,1764541839821,-500.0,0.00013698,2]
[395203659,1764541839830,-500.0,0.00013698,2]
[395203660,1764541839839,-500.0,0.00013698,2]
[395203661,1764541839848,-500.0,0.00013698,2]
[395203663,1764541839857,-2183.21,0.00013698,2]
[395203665,1764541839865,-500.0,0.00013698,2]
[395203667,1764541839875,-500.0,0.00013698,2]
[395203669,1764541839883,-824.06,0.00013698,2]
[395203671,1764541839893,-500.0,0.00013698,2]
[395203673,1764541839902,-500.0,0.00013698,2]
[395203675,1764541839911,-500.0,0.00013698,2]
[395203677,1764541839920,-500.0,0.00013698,2]
[395203679,1764541839929,-307.39703416,0.00013698,2]
[395203681,1764541839938,-500.0,0.00013698,2]
[395203683,1764541839947,-500.0,0.00013698,2]
[395203685,1764541839956,-1072.89,0.00013698,2]
[395203687,1764541839965,-500.0,0.00013698,2]
[395203689,1764541839975,-500.0,0.00013698,2]
[395203691,1764541839984,-500.0,0.00013698,2]
[395203692,1764541839993,-646.82,0.00013698,2]
[395203694,1764541840002,-627.95,0.00013698,2]
[395203696,1764541840011,-500.0,0.00013698,2]
[395203698,1764541840020,-500.0,0.00013698,2]
[395203701,1764541840030,-710.13,0.00013698,2]
[395203703,1764541840039,-500.0,0.00013698,2]
[395203705,1764541840049,-526.0,0.00013698,2]
[395203707,1764541840060,-500.0,0.00013698,2]
[395203709,1764541840069,-500.0,0.00013698,2]
[395203710,1764541840079,-500.0,0.00013698,2]
[395203712,1764541840089,-524.45,0.00013698,2]
[395203715,1764541840100,-500.0,0.00013698,2]
[395203716,1764541840111,-500.0,0.00013698,2]
[395203718,1764541840121,-500.0,0.00013698,2]
[395203720,1764541840131,-500.0,0.00013698,2]
[395203722,1764541840141,-500.0,0.00013698,2]
[395203725,1764541840151,-500.0,0.00013698,2]
[395203727,1764541840161,-500.0,0.00013698,2]
[395203729,1764541840170,-500.0,0.00013698,2]
[395203731,1764541840184,-500.0,0.00013698,2]
[395203733,1764541840193,-645.8,0.00013698,2]
[395203735,1764541840203,-500.0,0.00013698,2]
[395203737,1764541840212,-500.0,0.00013698,2]
[395203739,1764541840221,-1333.62,0.00013698,2]
[395203741,1764541840230,-500.0,0.00013698,2]
[395203743,1764541840239,-500.0,0.00013698,2]
[395203745,1764541840248,-500.0,0.00013698,2]
[395203747,1764541840256,-526.44726769,0.00013698,2]
[395203749,1764541840266,-1065.82,0.00013698,2]
[395203751,1764541840275,-522.13,0.00013698,2]
[395203753,1764541840283,-1546.2,0.00013698,2]
[395203755,1764541840293,-500.0,0.00013698,2]
[395203757,1764541840302,-502.51176433,0.00013698,2]
[395203759,1764541840311,-500.0,0.00013698,2]
[395203761,1764541840320,-500.0,0.00013698,2]
[395203763,1764541840329,-977.79,0.00013698,2]
[395203765,1764541840338,-500.0,0.00013698,2]
[395203767,1764541840348,-673.43,0.00013698,2]
[395203769,1764541840357,-1663.03,0.00013698,2]